[Event "*** Titled Tuesday Blitz"]
[Site "Chess.com"]
[Date "2021.03.02"]
[Round "1"]
[White "mikolka1985"]
[Black "Chernov_Mikhail"]
[Result "1-0"]
[WhiteElo "2646"]
[BlackElo "2334"]
[TimeControl "180+1"]
[EndTime "10:04:54 PST"]
[Termination "mikolka1985 won by resignation"]

1. d4 {[%clk 0:03:00.1]} 1... d5 {[%clk 0:02:59]} 2. c4 {[%clk 0:02:59.3]} 2...
c6 {[%clk 0:02:59.1]} 3. Nc3 {[%clk 0:02:58]} 3... Nf6 {[%clk 0:02:58.8]} 4. e3
{[%clk 0:02:48.6]} 4... e6 {[%clk 0:02:56.9]} 5. Nf3 {[%clk 0:02:48]} 5... Nbd7
{[%clk 0:02:56.7]} 6. Qc2 {[%clk 0:02:47.9]} 6... Bd6 {[%clk 0:02:56.8]} 7. Be2
{[%clk 0:02:46.1]} 7... dxc4 {[%clk 0:02:52.8]} 8. Bxc4 {[%clk 0:02:45.2]} 8...
b5 {[%clk 0:02:51.6]} 9. Be2 {[%clk 0:02:44.4]} 9... Bb7 {[%clk 0:02:51.9]} 10.
O-O {[%clk 0:02:44.3]} 10... O-O {[%clk 0:02:48.4]} 11. a3 {[%clk 0:02:39.4]}
11... Rc8 {[%clk 0:02:42.1]} 12. b4 {[%clk 0:02:38]} 12... c5 {[%clk 0:02:30.1]}
13. bxc5 {[%clk 0:02:36.5]} 13... Nxc5 {[%clk 0:02:23.6]} 14. dxc5 {[%clk
0:02:31.4]} 14... Rxc5 {[%clk 0:02:24.5]} 15. Bb2 {[%clk 0:02:27.9]} 15... Qc7
{[%clk 0:01:50.9]} 16. Qb3 {[%clk 0:02:26.4]} 16... a6 {[%clk 0:01:09.8]} 17.
Rac1 {[%clk 0:02:17.8]} 17... Ng4 {[%clk 0:00:57.1]} 18. g3 {[%clk 0:01:56.4]}
18... Qc6 {[%clk 0:00:41.9]} 19. e4 {[%clk 0:01:49.9]} 19... f5 {[%clk 0:00:29]}
20. Nd4 {[%clk 0:01:47.6]} 20... Qc7 {[%clk 0:00:19.1]} 21. Nxe6 {[%clk
0:01:46.5]} 1-0

[Event "*** Titled Tuesday Blitz"]
[Site "Chess.com"]
[Date "2021.03.02"]
[Round "1"]
[White "Fiona"]
[Black "Kildepiotr"]
[Result "0-1"]
[WhiteElo "2267"]
[BlackElo "2572"]
[TimeControl "180+1"]
[EndTime "10:04:59 PST"]
[Termination "Kildepiotr won by resignation"]

1. e4 {[%clk 0:03:00.1]} 1... g6 {[%clk 0:02:58.9]} 2. d4 {[%clk 0:03:00.1]}
2... Bg7 {[%clk 0:02:58.7]} 3. Be3 {[%clk 0:03:00.2]} 3... c6 {[%clk 0:02:58.6]}
4. Nf3 {[%clk 0:02:58.7]} 4... d6 {[%clk 0:02:58.5]} 5. c3 {[%clk 0:02:58.6]}
5... Nf6 {[%clk 0:02:58.5]} 6. Bd3 {[%clk 0:02:56]} 6... O-O {[%clk 0:02:58.7]}
7. O-O {[%clk 0:02:54.9]} 7... Nbd7 {[%clk 0:02:59.1]} 8. h3 {[%clk 0:02:43.6]}
8... e5 {[%clk 0:02:58.8]} 9. Qd2 {[%clk 0:02:36.1]} 9... Qe7 {[%clk 0:02:56.5]}
10. dxe5 {[%clk 0:01:36.5]} 10... dxe5 {[%clk 0:02:56]} 11. Bh6 {[%clk
0:01:19.6]} 11... Nc5 {[%clk 0:02:54.7]} 12. Bxg7 {[%clk 0:01:08.1]} 12... Kxg7
{[%clk 0:02:55.6]} 13. Qe3 {[%clk 0:01:02.2]} 13... Nxd3 {[%clk 0:02:44.6]} 14.
Qxd3 {[%clk 0:01:00.9]} 14... Nh5 {[%clk 0:02:44.2]} 15. c4 {[%clk 0:00:50.8]}
15... Nf4 {[%clk 0:02:35]} 16. Qc3 {[%clk 0:00:50.7]} 16... f6 {[%clk
0:02:35.1]} 17. Nbd2 {[%clk 0:00:41.8]} 17... Rd8 {[%clk 0:02:34.3]} 18. Rad1
{[%clk 0:00:41.4]} 18... Rd3 {[%clk 0:02:33.4]} 19. Qc2 {[%clk 0:00:36]} 19...
Be6 {[%clk 0:02:27.4]} 20. Nb3 {[%clk 0:00:34.3]} 20... Rad8 {[%clk 0:02:26.1]}
21. Rxd3 {[%clk 0:00:34.4]} 21... Rxd3 {[%clk 0:02:26]} 22. Rd1 {[%clk 0:00:35]}
22... Rxd1+ {[%clk 0:02:23.3]} 23. Qxd1 {[%clk 0:00:35.9]} 23... Bxc4 {[%clk
0:02:23.4]} 24. Nbd2 {[%clk 0:00:26.9]} 24... Qd6 {[%clk 0:02:18.3]} 25. Qc2
{[%clk 0:00:24]} 25... Bf7 {[%clk 0:02:16.8]} 26. Nf1 {[%clk 0:00:23.3]} 26...
Qd3 {[%clk 0:02:10.2]} 27. Ne3 {[%clk 0:00:22.1]} 27... Qxc2 {[%clk 0:02:09.8]}
28. Nxc2 {[%clk 0:00:23]} 28... Bxa2 {[%clk 0:02:09.5]} 29. Nd2 {[%clk 0:00:23]}
29... Be6 {[%clk 0:02:06.2]} 30. Kh2 {[%clk 0:00:23.3]} 30... Nd3 {[%clk
0:02:05.9]} 31. Ne3 {[%clk 0:00:21.5]} 31... Nxb2 {[%clk 0:02:04.9]} 0-1

[Event "*** Titled Tuesday Blitz"]
[Site "Chess.com"]
[Date "2021.03.02"]
[Round "1"]
[White "Buryshin_Vasyl"]
[Black "KonstantinB_1983"]
[Result "0-1"]
[WhiteElo "2228"]
[BlackElo "2545"]
[TimeControl "180+1"]
[EndTime "10:04:59 PST"]
[Termination "KonstantinB_1983 won by checkmate"]

1. b3 {[%clk 0:03:00.9]} 1... e5 {[%clk 0:02:58.7]} 2. Bb2 {[%clk 0:03:01.3]}
2... Nc6 {[%clk 0:02:59]} 3. e3 {[%clk 0:03:01.6]} 3... a6 {[%clk 0:02:59.4]} 4.
Ne2 {[%clk 0:02:50.7]} 4... d5 {[%clk 0:02:58.7]} 5. f4 {[%clk 0:02:47.3]} 5...
Bd6 {[%clk 0:02:54.2]} 6. d3 {[%clk 0:02:18.6]} 6... Nf6 {[%clk 0:02:53.6]} 7.
Nd2 {[%clk 0:02:17.3]} 7... O-O {[%clk 0:02:51.1]} 8. fxe5 {[%clk 0:01:48.1]}
8... Bxe5 {[%clk 0:02:48.8]} 9. Bxe5 {[%clk 0:01:46.3]} 9... Nxe5 {[%clk
0:02:46.5]} 10. Nd4 {[%clk 0:01:43.9]} 10... c5 {[%clk 0:02:41.7]} 11. N4f3
{[%clk 0:01:43.7]} 11... Neg4 {[%clk 0:02:40.9]} 12. e4 {[%clk 0:01:19.3]} 12...
Re8 {[%clk 0:02:37.6]} 13. Be2 {[%clk 0:01:17.4]} 13... Ne3 {[%clk 0:02:36.4]}
14. Qc1 {[%clk 0:01:15.1]} 14... dxe4 {[%clk 0:02:35.8]} 15. dxe4 {[%clk
0:01:08.3]} 15... Nxg2+ {[%clk 0:02:34.4]} 16. Kf1 {[%clk 0:01:04.8]} 16... Ne3+
{[%clk 0:02:26.4]} 17. Ke1 {[%clk 0:00:56.2]} 17... Nxe4 {[%clk 0:02:21.5]} 18.
Nxe4 {[%clk 0:00:44.4]} 18... Rxe4 {[%clk 0:02:20]} 19. Rg1 {[%clk 0:00:20.2]}
19... Ng4 {[%clk 0:02:11.8]} 20. Qb2 {[%clk 0:00:16.1]} 20... Qe7 {[%clk
0:02:03.6]} 21. Kf1 {[%clk 0:00:08.9]} 21... Rxe2 {[%clk 0:02:00.6]} 22. h3
{[%clk 0:00:09.4]} 22... Rf2# {[%clk 0:01:49.9]} 0-1

[Event "*** Titled Tuesday Blitz"]
[Site "Chess.com"]
[Date "2021.03.02"]
[Round "1"]
[White "Grandelicious"]
[Black "Kozok"]
[Result "1-0"]
[WhiteElo "2855"]
[BlackElo "2439"]
[TimeControl "180+1"]
[EndTime "10:05:11 PST"]
[Termination "Grandelicious won by resignation"]

1. d4 {[%clk 0:03:00.9]} 1... Nf6 {[%clk 0:02:59.6]} 2. c4 {[%clk 0:03:01.2]}
2... e6 {[%clk 0:02:59.6]} 3. Nc3 {[%clk 0:03:01.6]} 3... d5 {[%clk 0:02:54.9]}
4. Bg5 {[%clk 0:02:55.3]} 4... Bb4 {[%clk 0:02:54.2]} 5. e3 {[%clk 0:02:54.8]}
5... h6 {[%clk 0:02:52.2]} 6. Bh4 {[%clk 0:02:54.4]} 6... g5 {[%clk 0:02:50.6]}
7. Bg3 {[%clk 0:02:54.7]} 7... Ne4 {[%clk 0:02:51.2]} 8. Ne2 {[%clk 0:02:54.8]}
8... h5 {[%clk 0:02:49.8]} 9. f3 {[%clk 0:02:52.5]} 9... Nxg3 {[%clk 0:02:42.1]}
10. hxg3 {[%clk 0:02:53.4]} 10... Qf6 {[%clk 0:02:41.5]} 11. Qa4+ {[%clk
0:02:48.1]} 11... Nc6 {[%clk 0:02:41.5]} 12. a3 {[%clk 0:02:49]} 12... Bxc3+
{[%clk 0:02:35.1]} 13. Nxc3 {[%clk 0:02:49.4]} 13... dxc4 {[%clk 0:02:18.5]} 14.
Bxc4 {[%clk 0:02:44.2]} 14... Bd7 {[%clk 0:02:18]} 15. Qc2 {[%clk 0:02:36.6]}
15... O-O-O {[%clk 0:02:17.2]} 16. O-O-O {[%clk 0:02:33.8]} 16... Ne7 {[%clk
0:02:07.8]} 17. Ne4 {[%clk 0:02:30.3]} 17... Qg6 {[%clk 0:02:06.9]} 18. Bd3
{[%clk 0:02:30.5]} 18... Qg7 {[%clk 0:01:59.1]} 19. Qc5 {[%clk 0:02:30]} 19...
Nc6 {[%clk 0:01:38.9]} 20. Qxg5 {[%clk 0:02:29.8]} 20... Rdg8 {[%clk 0:01:30.5]}
21. Qxg7 {[%clk 0:02:19.6]} 21... Rxg7 {[%clk 0:01:31.4]} 22. g4 {[%clk
0:02:20.5]} 22... f5 {[%clk 0:01:27.3]} 23. gxf5 {[%clk 0:02:13.9]} 23... exf5
{[%clk 0:01:27.6]} 24. Nc5 {[%clk 0:02:14.8]} 24... Ne7 {[%clk 0:01:19.8]} 25.
Rh2 {[%clk 0:02:08.4]} 25... h4 {[%clk 0:01:18.3]} 26. Rdh1 {[%clk 0:02:06.3]}
26... Rhg8 {[%clk 0:01:17.1]} 27. Bc4 {[%clk 0:02:00.9]} 27... Rf8 {[%clk
0:01:14.7]} 28. Be6 {[%clk 0:02:00]} 28... Bxe6 {[%clk 0:00:49.9]} 29. Nxe6
{[%clk 0:02:00.9]} 29... Rfg8 {[%clk 0:00:48]} 30. Nxg7 {[%clk 0:02:00.8]} 30...
Rxg7 {[%clk 0:00:48.9]} 31. Rg1 {[%clk 0:01:52.5]} 31... Ng6 {[%clk 0:00:42.8]}
32. g3 {[%clk 0:01:52.9]} 1-0

[Event "*** Titled Tuesday Blitz"]
[Site "Chess.com"]
[Date "2021.03.02"]
[Round "1"]
[White "BahadirOzen"]
[Black "lucachess49"]
[Result "1-0"]
[WhiteElo "2794"]
[BlackElo "2415"]
[TimeControl "180+1"]
[EndTime "10:05:12 PST"]
[Termination "BahadirOzen won by resignation"]

1. g3 {[%clk 0:03:00.9]} 1... g6 {[%clk 0:02:57.2]} 2. Bg2 {[%clk 0:03:00.7]}
2... Bg7 {[%clk 0:02:57.6]} 3. d4 {[%clk 0:03:01]} 3... e6 {[%clk 0:02:58.5]} 4.
e4 {[%clk 0:02:48.3]} 4... Ne7 {[%clk 0:02:57]} 5. Ne2 {[%clk 0:02:48.3]} 5...
O-O {[%clk 0:02:56.3]} 6. O-O {[%clk 0:02:48.1]} 6... d6 {[%clk 0:02:56.4]} 7.
c4 {[%clk 0:02:45.3]} 7... b6 {[%clk 0:02:56.6]} 8. Nbc3 {[%clk 0:02:43.2]} 8...
Bb7 {[%clk 0:02:55.9]} 9. Be3 {[%clk 0:02:43.7]} 9... Nd7 {[%clk 0:02:50]} 10.
Qd2 {[%clk 0:02:43.2]} 10... f5 {[%clk 0:02:41.3]} 11. Nf4 {[%clk 0:02:40.8]}
11... Rf6 {[%clk 0:02:34.2]} 12. e5 {[%clk 0:02:27.5]} 12... dxe5 {[%clk
0:02:14.3]} 13. dxe5 {[%clk 0:02:15.1]} 13... Nxe5 {[%clk 0:02:08.2]} 14. Qxd8+
{[%clk 0:02:13.9]} 14... Rxd8 {[%clk 0:02:06.9]} 15. Bxb7 {[%clk 0:02:14.8]}
15... Nxc4 {[%clk 0:02:04.9]} 16. Rad1 {[%clk 0:02:06]} 16... Rb8 {[%clk
0:01:32.3]} 17. Rd7 {[%clk 0:01:49.6]} 17... Bf8 {[%clk 0:00:28]} 18. Rxc7
{[%clk 0:01:44.2]} 18... Nxe3 {[%clk 0:00:28]} 19. fxe3 {[%clk 0:01:44]} 19...
e5 {[%clk 0:00:19.9]} 20. Nfd5 {[%clk 0:01:42.2]} 20... Nxd5 {[%clk 0:00:18.9]}
21. Bxd5+ {[%clk 0:01:43.1]} 21... Kh8 {[%clk 0:00:17.6]} 22. Ne4 {[%clk
0:01:42.6]} 22... Bd6 {[%clk 0:00:14.9]} 23. Rd7 {[%clk 0:01:35.2]} 1-0

[Event "*** Titled Tuesday Blitz"]
[Site "Chess.com"]
[Date "2021.03.02"]
[Round "1"]
[White "JQuiroga18"]
[Black "Parhamov"]
[Result "0-1"]
[WhiteElo "2442"]
[BlackElo "2886"]
[TimeControl "180+1"]
[EndTime "10:05:19 PST"]
[Termination "Parhamov won by resignation"]

1. e4 {[%clk 0:02:57.2]} 1... c5 {[%clk 0:02:58.6]} 2. Nf3 {[%clk 0:02:51.5]}
2... Nc6 {[%clk 0:02:57.4]} 3. d4 {[%clk 0:02:49.8]} 3... cxd4 {[%clk
0:02:57.2]} 4. Nxd4 {[%clk 0:02:50]} 4... Nf6 {[%clk 0:02:56.5]} 5. Nc3 {[%clk
0:02:41.8]} 5... d6 {[%clk 0:02:56.4]} 6. Bg5 {[%clk 0:02:38.3]} 6... e6 {[%clk
0:02:54]} 7. Qd2 {[%clk 0:02:38.1]} 7... a6 {[%clk 0:02:52.8]} 8. O-O-O {[%clk
0:02:36.9]} 8... Bd7 {[%clk 0:02:52.8]} 9. Kb1 {[%clk 0:02:35.6]} 9... Be7
{[%clk 0:02:51.7]} 10. f4 {[%clk 0:02:34.6]} 10... b5 {[%clk 0:02:51.7]} 11. Be2
{[%clk 0:01:59.5]} 11... b4 {[%clk 0:02:47.5]} 12. Bxf6 {[%clk 0:01:22]} 12...
Bxf6 {[%clk 0:02:07.2]} 13. Nxc6 {[%clk 0:01:09.7]} 13... Bxc6 {[%clk
0:02:07.4]} 14. Nd5 {[%clk 0:01:09.6]} 14... exd5 {[%clk 0:02:06.3]} 15. exd5
{[%clk 0:01:10.5]} 15... Bd7 {[%clk 0:02:06.5]} 16. Qxb4 {[%clk 0:01:09.6]}
16... O-O {[%clk 0:02:03.2]} 17. Qxd6 {[%clk 0:01:01.1]} 17... Rb8 {[%clk
0:02:03.3]} 18. b3 {[%clk 0:00:59.6]} 18... Qa5 {[%clk 0:02:01.5]} 19. Rd3
{[%clk 0:00:45.2]} 19... Bb5 {[%clk 0:01:55.3]} 20. Rg3 {[%clk 0:00:33.9]} 20...
Rb6 {[%clk 0:01:54]} 21. Qc5 {[%clk 0:00:26]} 21... Re8 {[%clk 0:01:47.4]} 22.
Bxb5 {[%clk 0:00:24.4]} 22... axb5 {[%clk 0:01:46.7]} 23. d6 {[%clk 0:00:21.8]}
23... Ra8 {[%clk 0:01:35.9]} 0-1

[Event "*** Titled Tuesday Blitz"]
[Site "Chess.com"]
[Date "2021.03.02"]
[Round "1"]
[White "night_player"]
[Black "Hypercar"]
[Result "0-1"]
[WhiteElo "2197"]
[BlackElo "2530"]
[TimeControl "180+1"]
[EndTime "10:05:19 PST"]
[Termination "Hypercar won by resignation"]

1. e4 {[%clk 0:03:00.9]} 1... c5 {[%clk 0:02:59.2]} 2. c3 {[%clk 0:03:00.1]}
2... d6 {[%clk 0:02:52.9]} 3. d4 {[%clk 0:02:58.7]} 3... Nf6 {[%clk 0:02:53.2]}
4. Bd3 {[%clk 0:02:54.7]} 4... cxd4 {[%clk 0:02:53.2]} 5. cxd4 {[%clk
0:02:54.6]} 5... e5 {[%clk 0:02:53.8]} 6. Nf3 {[%clk 0:02:53]} 6... Nc6 {[%clk
0:02:53.1]} 7. Be3 {[%clk 0:02:51.1]} 7... Bg4 {[%clk 0:02:50.3]} 8. d5 {[%clk
0:02:47.9]} 8... Ne7 {[%clk 0:02:46.7]} 9. O-O {[%clk 0:02:46.9]} 9... a6 {[%clk
0:02:44.4]} 10. Nbd2 {[%clk 0:02:41]} 10... Ng6 {[%clk 0:02:44.3]} 11. h3 {[%clk
0:02:39.6]} 11... Bd7 {[%clk 0:02:42.5]} 12. Qb3 {[%clk 0:02:36.3]} 12... b5
{[%clk 0:02:40.1]} 13. Rac1 {[%clk 0:02:34.7]} 13... Be7 {[%clk 0:02:39.7]} 14.
Rc2 {[%clk 0:02:34.9]} 14... O-O {[%clk 0:02:37.6]} 15. Rfc1 {[%clk 0:02:34.5]}
15... Nh5 {[%clk 0:02:37.7]} 16. Bf1 {[%clk 0:02:28.6]} 16... Nhf4 {[%clk
0:02:37.5]} 17. Qc3 {[%clk 0:02:06.6]} 17... f5 {[%clk 0:02:35.9]} 18. Bxf4
{[%clk 0:01:46.2]} 18... Nxf4 {[%clk 0:02:32.5]} 19. Qc7 {[%clk 0:01:07.5]}
19... fxe4 {[%clk 0:02:25.3]} 20. Nxe4 {[%clk 0:01:03.1]} 20... Bf5 {[%clk
0:02:19.7]} 21. Nfd2 {[%clk 0:00:42.6]} 21... Nxd5 {[%clk 0:02:16.3]} 22. Qxd8
{[%clk 0:00:41.3]} 22... Raxd8 {[%clk 0:02:15.1]} 23. a4 {[%clk 0:00:37.3]}
23... Nf6 {[%clk 0:02:11.3]} 24. Nxf6+ {[%clk 0:00:36]} 24... Bxf6 {[%clk
0:02:11.5]} 25. Rc6 {[%clk 0:00:33.8]} 25... bxa4 {[%clk 0:02:11.4]} 26. Rxa6
{[%clk 0:00:29.5]} 26... d5 {[%clk 0:02:08.9]} 27. Rxa4 {[%clk 0:00:27.9]} 27...
Bg5 {[%clk 0:02:09.4]} 28. Nb3 {[%clk 0:00:12.5]} 28... Bxc1 {[%clk 0:02:07.5]}
29. Nxc1 {[%clk 0:00:13.4]} 29... d4 {[%clk 0:02:07.7]} 30. Nd3 {[%clk
0:00:13.1]} 30... e4 {[%clk 0:02:07.9]} 31. Nc5 {[%clk 0:00:10.9]} 31... d3
{[%clk 0:02:08.3]} 32. Ra1 {[%clk 0:00:09.7]} 32... d2 {[%clk 0:02:08.4]} 33.
Rd1 {[%clk 0:00:10.1]} 33... e3 {[%clk 0:02:07.6]} 34. fxe3 {[%clk 0:00:09.7]}
34... Bc2 {[%clk 0:02:08.3]} 35. Be2 {[%clk 0:00:07.9]} 35... Bxd1 {[%clk
0:02:08.5]} 36. Bxd1 {[%clk 0:00:08.8]} 36... Rc8 {[%clk 0:02:08.9]} 37. Nd3
{[%clk 0:00:07.8]} 37... Rc1 {[%clk 0:02:09]} 0-1

[Event "*** Titled Tuesday Blitz"]
[Site "Chess.com"]
[Date "2021.03.02"]
[Round "1"]
[White "chesslh19"]
[Black "bazar-wokzal"]
[Result "1/2-1/2"]
[WhiteElo "2251"]
[BlackElo "2544"]
[TimeControl "180+1"]
[EndTime "10:05:21 PST"]
[Termination "Game drawn by repetition"]

1. e4 {[%clk 0:02:50.4]} 1... Nc6 {[%clk 0:02:59.3]} 2. Nf3 {[%clk 0:02:50]}
2... d5 {[%clk 0:02:59]} 3. exd5 {[%clk 0:02:48.6]} 3... Qxd5 {[%clk 0:02:59.9]}
4. Nc3 {[%clk 0:02:47.9]} 4... Qa5 {[%clk 0:03:00.5]} 5. Bb5 {[%clk 0:01:40.2]}
5... Nf6 {[%clk 0:02:59.5]} 6. d4 {[%clk 0:01:21.7]} 6... Bg4 {[%clk 0:02:55.5]}
7. h3 {[%clk 0:01:16.5]} 7... Bh5 {[%clk 0:02:51.8]} 8. g4 {[%clk 0:01:05.1]}
8... Bg6 {[%clk 0:02:51.3]} 9. Ne5 {[%clk 0:01:03.5]} 9... O-O-O {[%clk
0:02:50.4]} 10. Bxc6 {[%clk 0:00:59.6]} 10... bxc6 {[%clk 0:02:46.3]} 11. Nxc6
{[%clk 0:00:59.8]} 11... Qa6 {[%clk 0:02:42.6]} 12. Nxd8 {[%clk 0:00:59]} 12...
Kxd8 {[%clk 0:02:42.4]} 13. Qe2 {[%clk 0:00:59.3]} 13... Qb7 {[%clk 0:02:40.8]}
14. f3 {[%clk 0:00:44.6]} 14... e6 {[%clk 0:02:39.8]} 15. O-O {[%clk 0:00:26]}
15... Bb4 {[%clk 0:02:31.7]} 16. Qb5 {[%clk 0:00:24.6]} 16... Qxb5 {[%clk
0:02:28.3]} 17. Nxb5 {[%clk 0:00:24.7]} 17... a6 {[%clk 0:02:28.2]} 18. c3
{[%clk 0:00:19.6]} 18... axb5 {[%clk 0:02:20.9]} 19. cxb4 {[%clk 0:00:19.3]}
19... Nd5 {[%clk 0:02:18.7]} 20. Bd2 {[%clk 0:00:18]} 20... Kd7 {[%clk
0:02:17.7]} 21. a4 {[%clk 0:00:18.1]} 21... bxa4 {[%clk 0:02:17]} 22. Rxa4
{[%clk 0:00:19]} 22... Rb8 {[%clk 0:02:15.9]} 23. Rfa1 {[%clk 0:00:18.7]} 23...
h5 {[%clk 0:02:14.2]} 24. Ra8 {[%clk 0:00:18.8]} 24... Rb6 {[%clk 0:02:09.9]}
25. R8a6 {[%clk 0:00:18.3]} 25... Rb8 {[%clk 0:02:09.1]} 26. Ra8 {[%clk
0:00:18.5]} 26... Rb6 {[%clk 0:02:08.7]} 27. R8a6 {[%clk 0:00:17.8]} 27... Rb8
{[%clk 0:02:08.4]} 28. R6a4 {[%clk 0:00:14.7]} 28... hxg4 {[%clk 0:02:01.2]} 29.
hxg4 {[%clk 0:00:14.8]} 29... Rb6 {[%clk 0:01:57.1]} 30. Kg2 {[%clk 0:00:13.6]}
30... Rc6 {[%clk 0:01:54.6]} 31. Rc1 {[%clk 0:00:12]} 31... Rb6 {[%clk
0:01:54.4]} 32. Rca1 {[%clk 0:00:12.1]} 32... Rc6 {[%clk 0:01:54.4]} 33. Rc1
{[%clk 0:00:12.4]} 33... Rb6 {[%clk 0:01:52.3]} 34. Rca1 {[%clk 0:00:12.9]}
1/2-1/2

[Event "*** Titled Tuesday Blitz"]
[Site "Chess.com"]
[Date "2021.03.02"]
[Round "1"]
[White "Trankuilizer"]
[Black "Godzillator"]
[Result "0-1"]
[WhiteElo "2553"]
[BlackElo "2290"]
[TimeControl "180+1"]
[EndTime "10:05:25 PST"]
[Termination "Godzillator won on time"]

1. e4 {[%clk 0:03:00.3]} 1... c6 {[%clk 0:02:59.9]} 2. d4 {[%clk 0:02:59.6]}
2... d5 {[%clk 0:03:00.8]} 3. exd5 {[%clk 0:03:00.5]} 3... cxd5 {[%clk
0:03:00.9]} 4. c4 {[%clk 0:03:01.4]} 4... Nf6 {[%clk 0:02:59.9]} 5. Nc3 {[%clk
0:03:02.3]} 5... e6 {[%clk 0:03:00]} 6. Nf3 {[%clk 0:03:01.7]} 6... Bb4 {[%clk
0:03:00]} 7. cxd5 {[%clk 0:03:01.6]} 7... Nxd5 {[%clk 0:02:59.6]} 8. Bd2 {[%clk
0:03:02.1]} 8... Nc6 {[%clk 0:02:59.6]} 9. Bd3 {[%clk 0:03:02]} 9... O-O {[%clk
0:02:59.6]} 10. O-O {[%clk 0:03:01.9]} 10... Be7 {[%clk 0:02:59.6]} 11. Qe2
{[%clk 0:03:01.4]} 11... Ncb4 {[%clk 0:02:56.8]} 12. Be4 {[%clk 0:03:01]} 12...
Nf6 {[%clk 0:02:55.6]} 13. Bb1 {[%clk 0:02:53.9]} 13... b6 {[%clk 0:02:55.5]}
14. a3 {[%clk 0:02:53.1]} 14... Nbd5 {[%clk 0:02:55.6]} 15. Ba2 {[%clk
0:02:53.3]} 15... Bb7 {[%clk 0:02:55.1]} 16. Rad1 {[%clk 0:02:53.2]} 16... Rc8
{[%clk 0:02:53.9]} 17. Rfe1 {[%clk 0:02:53.3]} 17... Re8 {[%clk 0:02:47.7]} 18.
Ne5 {[%clk 0:02:53.1]} 18... Bf8 {[%clk 0:02:44.1]} 19. h4 {[%clk 0:02:50.8]}
19... Nxc3 {[%clk 0:02:40]} 20. Bxc3 {[%clk 0:02:49.8]} 20... Nd5 {[%clk
0:02:39.9]} 21. h5 {[%clk 0:02:32.6]} 21... Nxc3 {[%clk 0:02:35]} 22. bxc3
{[%clk 0:02:31.3]} 22... Qg5 {[%clk 0:02:34.6]} 23. f3 {[%clk 0:02:21.2]} 23...
Rxc3 {[%clk 0:02:30]} 24. h6 {[%clk 0:01:16]} 24... Rxa3 {[%clk 0:02:16.9]} 25.
Nxf7 {[%clk 0:00:20.4]} 25... Kxf7 {[%clk 0:02:16.5]} 26. Bxe6+ {[%clk
0:00:19.7]} 26... Kf6 {[%clk 0:02:15.8]} 27. Qb2 {[%clk 0:00:02.9]} 27... Rxe6
{[%clk 0:02:08.4]} 28. d5+ {[%clk 0:00:03]} 28... Re5 {[%clk 0:02:06.9]} 29. d6
{[%clk 0:00:03.5]} 29... Bxf3 {[%clk 0:02:02.3]} 30. d7 {[%clk 0:00:02]} 30...
Be7 {[%clk 0:01:55]} 0-1

[Event "*** Titled Tuesday Blitz"]
[Site "Chess.com"]
[Date "2021.03.02"]
[Round "1"]
[White "Supernotar"]
[Black "gympod"]
[Result "1-0"]
[WhiteElo "2675"]
[BlackElo "2352"]
[TimeControl "180+1"]
[EndTime "10:05:28 PST"]
[Termination "Supernotar won by resignation"]

1. d4 {[%clk 0:03:00.9]} 1... Nf6 {[%clk 0:02:59.6]} 2. c4 {[%clk 0:02:53.4]}
2... e6 {[%clk 0:02:59.3]} 3. Nf3 {[%clk 0:02:51.6]} 3... Bb4+ {[%clk
0:02:59.5]} 4. Nbd2 {[%clk 0:02:50]} 4... d5 {[%clk 0:02:57.7]} 5. Qc2 {[%clk
0:02:49.4]} 5... O-O {[%clk 0:02:56.4]} 6. g3 {[%clk 0:02:49.4]} 6... a6 {[%clk
0:02:47.5]} 7. Bg2 {[%clk 0:02:49.3]} 7... dxc4 {[%clk 0:02:47.3]} 8. Qxc4
{[%clk 0:02:48.3]} 8... Be7 {[%clk 0:02:44.7]} 9. O-O {[%clk 0:02:41.5]} 9... b5
{[%clk 0:02:43.6]} 10. Qb3 {[%clk 0:02:38.1]} 10... Bb7 {[%clk 0:02:42.6]} 11.
a4 {[%clk 0:02:31.2]} 11... b4 {[%clk 0:02:41.2]} 12. Nc4 {[%clk 0:02:26.4]}
12... a5 {[%clk 0:02:36.3]} 13. Bf4 {[%clk 0:02:20.9]} 13... Nbd7 {[%clk
0:02:27]} 14. Rac1 {[%clk 0:02:19.2]} 14... Nd5 {[%clk 0:02:18]} 15. Rfd1 {[%clk
0:02:13.1]} 15... Nxf4 {[%clk 0:02:17]} 16. gxf4 {[%clk 0:02:13.8]} 16... Nf6
{[%clk 0:02:15.1]} 17. Nce5 {[%clk 0:02:05.7]} 17... Bd6 {[%clk 0:01:52.4]} 18.
e3 {[%clk 0:01:52.3]} 18... Bd5 {[%clk 0:01:51.9]} 19. Qd3 {[%clk 0:01:49.4]}
19... Qc8 {[%clk 0:01:45]} 20. Nd2 {[%clk 0:01:39.4]} 20... Bxg2 {[%clk
0:01:42.7]} 21. Kxg2 {[%clk 0:01:40.3]} 21... Qb7+ {[%clk 0:01:42.5]} 22. f3
{[%clk 0:01:37.7]} 22... Rfd8 {[%clk 0:01:35]} 23. Nb3 {[%clk 0:01:36.6]} 23...
Bxe5 {[%clk 0:01:32.4]} 24. fxe5 {[%clk 0:01:35.2]} 24... Nd5 {[%clk 0:01:21.6]}
25. Rc5 {[%clk 0:01:30.2]} 25... Nb6 {[%clk 0:01:15.4]} 26. Qb5 {[%clk
0:01:18.4]} 26... g5 {[%clk 0:01:00.9]} 27. h3 {[%clk 0:01:14.7]} 27... Rd5
{[%clk 0:00:49]} 28. Rdc1 {[%clk 0:01:11.8]} 1-0

[Event "*** Titled Tuesday Blitz"]
[Site "Chess.com"]
[Date "2021.03.02"]
[Round "1"]
[White "Schack-Hugo"]
[Black "zim0ne"]
[Result "0-1"]
[WhiteElo "2219"]
[BlackElo "2536"]
[TimeControl "180+1"]
[EndTime "10:05:33 PST"]
[Termination "zim0ne won on time"]

1. e4 {[%clk 0:02:59.4]} 1... e5 {[%clk 0:02:59.6]} 2. Nf3 {[%clk 0:02:59.3]}
2... Nc6 {[%clk 0:02:59.6]} 3. Bc4 {[%clk 0:02:58.6]} 3... Bc5 {[%clk 0:02:58]}
4. c3 {[%clk 0:02:58.4]} 4... Nf6 {[%clk 0:02:57.8]} 5. d3 {[%clk 0:02:40.4]}
5... d6 {[%clk 0:02:57.6]} 6. Bg5 {[%clk 0:02:36.4]} 6... a6 {[%clk 0:02:55.5]}
7. d4 {[%clk 0:02:27.9]} 7... exd4 {[%clk 0:02:50.7]} 8. cxd4 {[%clk 0:02:28.8]}
8... Bb4+ {[%clk 0:02:51.1]} 9. Nc3 {[%clk 0:02:27]} 9... h6 {[%clk 0:02:50.6]}
10. Bh4 {[%clk 0:02:05.2]} 10... g5 {[%clk 0:02:50.3]} 11. Bg3 {[%clk
0:02:04.7]} 11... Nxe4 {[%clk 0:02:50.5]} 12. O-O {[%clk 0:01:12.3]} 12... Bxc3
{[%clk 0:02:46.6]} 13. bxc3 {[%clk 0:01:08.8]} 13... d5 {[%clk 0:02:44.2]} 14.
Bd3 {[%clk 0:01:01.5]} 14... O-O {[%clk 0:02:44]} 15. Ne5 {[%clk 0:00:46.5]}
15... Nxe5 {[%clk 0:02:34.4]} 16. dxe5 {[%clk 0:00:47.4]} 16... Kg7 {[%clk
0:02:28]} 17. Qh5 {[%clk 0:00:38.3]} 17... Bf5 {[%clk 0:02:23.4]} 18. f4 {[%clk
0:00:26.9]} 18... Nxg3 {[%clk 0:02:15.3]} 19. hxg3 {[%clk 0:00:27.8]} 19... Bxd3
{[%clk 0:02:15.8]} 20. f5 {[%clk 0:00:26.1]} 20... Qe8 {[%clk 0:01:58.2]} 21.
f6+ {[%clk 0:00:12.2]} 21... Kh7 {[%clk 0:01:58]} 22. Rae1 {[%clk 0:00:09.7]}
22... Bg6 {[%clk 0:01:57.6]} 23. Qf3 {[%clk 0:00:07.3]} 23... Qe6 {[%clk
0:01:55.2]} 24. Qf2 {[%clk 0:00:04]} 24... Rfe8 {[%clk 0:01:51.9]} 25. Qd4
{[%clk 0:00:03.2]} 25... Qb6 {[%clk 0:01:51.6]} 26. Kf2 {[%clk 0:00:01.4]} 26...
Qxd4+ {[%clk 0:01:50.6]} 27. cxd4 {[%clk 0:00:02.3]} 27... c5 {[%clk 0:01:50.8]}
28. dxc5 {[%clk 0:00:01.1]} 28... Rac8 {[%clk 0:01:51.1]} 0-1